Workbook

Sheet Lisez Moi
C2: Lisez-moi
C7: MARCHÉ – Outil d'analyse du marché
C9: Introduction
C10: Cet outil vient compléter le module MARCHÉ de la boîte à outils SPIS. Il sert à déterminer les paramètres géophysiques décisifs. Si l'un des paramètres obtient un score de 0, la zone est considérée comme ayant un potentiel très faible pour les SPIS. Un "Oui" dans cette évaluation permet de prendre en compte d'autres paramètres.
C12: Conseils et astuces
C21: Aperçu
C22: Cet outil comprend les feuilles suivantes :
C23: Intrant_Vérification préliminaire : permet une première vérification de l'aptitude du SPIS à faire l'objet d'une évaluation
C24: Intrant_Définition des facteurs de pondération : fournit une description des paramètres et permet d'ajuster les coefficients de pondération
C25: Intrant_Paramètres géophysiques : permet de définir les paramètres géophysiques dans la région cible
C26: Intrant_Environnement économique : permet de définir les paramètres économiques pertinents pour la zone cible
C27: PRODUIT_RÉSULTAT : donne un aperçu graphique du potentiel de marché d'un SPIS dans une région
C30: En savoir plus
C31: Publié par : GIZ et FAO
C32: Responsable : Projet de la GIZ « Énergie durable pour l'alimentation - Propulser l'agriculture » (Sustainable Energy for Food - Powering Agriculture) Rebecca Navarro
C33: Contact : Powering.Agriculture@giz.de
C34: Lien de téléchargement : https://energypedia.info/wiki/Toolbox_on_SPIS
C35: À propos de : Propulser l'agriculture : un grand défi énergétique pour le développement. Disponible à l'adresse : https://poweringag.org
C36: Version : 1.3 (janvier 2019)
C37: La boîte à outils pour les systèmes d'irrigation à énergie solaire (Solar Powered Irrigation Systems) est rendue possible grâce à l'initiative mondiale « Propulser l'agriculture : un grand défi énergétique pour le développement » (Powering Agriculture: An Energy Grand Challenge for Development - PAEGC). En 2012, l'Agence des États-Unis pour le développement international (USAID), l'Agence suédoise de développement et coopération internationale (Sida), le ministère fédéral allemand de la Coopération économique et du Développement (BMZ), Duke Energy et l’Overseas Private Investment Cooperation (OPIC) ont mis leurs ressources en commun pour créer l’initiative PAEGC. Cette initiative a pour objectif d’appuyer de nouvelles approches durables afin d’accélérer le développement et le déploiement de solutions énergétiques propres visant à accroître la productivité et/ou la valeur agricole pour les agriculteurs et les agroindustries dans les pays en développement et dans les régions émergentes qui n’ont pas accès à une énergie propre, fiable et abordable.
C38: Les appellations employées dans ce produit d’information et la présentation des documents qui y figurent n’impliquent de la part de la Deutsche Gesellschaft für Internationale Zusammenarbeit (GIZ) GmbH, de l’Organisation des Nations unies pour l’alimentation et l’agriculture (FAO) ou de l’un des partenaires fondateurs de l’initiative PAEGC aucune prise de position quant au statut juridique ou au stade de développement des pays, territoires, villes ou zones ou de leurs autorités, ni quant au tracé de leurs frontières ou limites. La mention de sociétés déterminées ou de produits de fabricants, qu’ils soient ou non brevetés, n’entraîne de la part de la GIZ, de la FAO ou de l’un des partenaires fondateurs du PAEGC aucune approbation ou recommandation desdits produits de préférence à d’autres de nature analogue qui ne sont pas cités. Les opinions exprimées dans ce produit d’information sont celles de l’auteur et ne reflètent pas nécessairement celles de la GIZ, de la FAO, ou de l’un des partenaires fondateurs du PAEGC.
C39: La GIZ, la FAO et les partenaires fondateurs du PAEGC encouragent l’utilisation, la reproduction et la diffusion des informations contenues dans ce document. Sauf indication contraire, ces dernières peuvent être copiées, téléchargées et imprimées à des fins privées d’étude, de recherche et d’enseignement, ou pour être utilisées dans des produits ou services non commerciaux, à condition que la GIZ et la FAO soient clairement indiquées en tant que sources des informations et détentrices du droit d’auteur.
C40: © GIZ et FAO, 2018

Sheet INTRANT_Vérification préliminai
E2: INTRANT - Vérification préliminaire
B6: Pays : | D6: Angola
B7: Zone spécifique concernée :
B8: Date de l'évaluation :
B9: Nom de l’évaluateur :
A11: 1 | B11: Paramètres géophysiques décisifs | O11: Meilleur score possible | P11: Score obtenu
O12: 9 | P12: =IF(COUNTIF(S14:S17,0)=0,S14+S15+S16,0) -> 7
B13: Questions | C13: Sources des données | O13: Réponse | P13: Aptitude | R13: Paramètre | S13: Score | T13: Score brut
A14: a) | B14: ="Quel est le type d'occupation des sols prédominant dans la zone concernée ?" -> Quel est le type d'occupation des sols prédominant dans la zone concernée ? | C14: Carte mondiale de l'occupation des sols | O14: Medium forest open to closed (tree cover above 40%) | P14: =VLOOKUP(O14,'Lists 2'!A:B,2,0) -> Marginally Suitable | R14: Occupation des sols | S14: =IF(P14="Highly Suitable", "3", IF(P14="Moderately Suitable", "2", IF(P14="Marginally Suitable", "1", "0"))) -> 1 | T14: =IF(COUNTIF(S14:S17,0)=0,S14+S15+S16,0) -> 7
A15: b) | B15: ="Quelle est l'irradiation solaire annuelle moyenne de la région ? (kWh/kW crête - valeur PVOUT)" -> Quelle est l'irradiation solaire annuelle moyenne de la région ? (kWh/kW crête - valeur PVOUT) | C15: Carte des ressources en énergie solaire de la Banque mondiale | O15: Above 1460 | P15: =IF(O15="0 - 948", "Not Suitable", IF(O15="949 - 1094", "Marginally Suitable", IF(O15="1095 - 1460", "Moderately Suitable", "Highly Suitable"))) -> Highly Suitable | R15: Irradiation solaire | S15: =IF(O15="Above 1460", "3", IF(O15="1095 - 1460", "2", IF(O15="949 - 1094", "1", "0"))) -> 3
A16: c) | B16: ="Quelles sont les valeurs mensuelles moyennes des températures et des précipitations de la région ?" -> Quelles sont les valeurs mensuelles moyennes des températures et des précipitations de la région ? | C16: Données sur les précipitations mondiales de la Banque mondiale | P16: =IF(O19=0, "Low Irrigation Requirement",IF(O19=1,"Marginally Suitable",IF(O19=2,"Moderately Suitable","Highly Suitable"))) -> Highly Suitable | R16: Précipitations | S16: =IF(P16="Moderately Suitable",2,IF(P16="Marginally Suitable",1,IF(P16="Low Irrigation Requirement",0,3))) -> 3
C17: J | D17: F | E17: M | F17: A | G17: M | H17: J | I17: J | J17: A | K17: S | L17: O | M17: N | N17: D | O17: Nombre de mois arides :
B19: Températures moyennes mensuelles (°C) | C19: 23 | D19: 23 | E19: 23 | F19: 22 | G19: 25 | H19: 18 | I19: 17 | J19: 19.5 | K19: 22.9 | L19: 24.9 | M19: 24.4 | N19: 23.3 | O19: =COUNTIF(C21:N21,">0") -> 5 | R19: Tmoy | S19: =AVERAGE(C19:N19) -> 22.16666667 | T19: TSD | U19: =STDEV(C19:N19) -> 2.621357502
B20: Précipitations moyennes mensuelles (mm) | C20: 221 | D20: 195 | E20: 157 | F20: 43 | G20: 6 | H20: 0 | I20: 0 | J20: 0 | K20: 3.6 | L20: 27.4 | M20: 107.6 | N20: 214.8 | R20: Pmoy | S20: =AVERAGE(C20:N20) -> 81.28333333 | T20: PSD | U20: =STDEV(C20:N20) -> 91.74904343
B21: Indice d'aridité (Harouna & Carlson 1994) | C21: =((C19-$S$19)/$U$19)-((C20-$S$20)/$U$20) -> -1.20491189 | D21: =((D19-$S$19)/$U$19)-((D20-$S$20)/$U$20) -> -0.9215301891 | E21: -0.5073569336 | F21: 0.3536811007 | G21: 1.901400256 | H21: -0.703576091 | I21: -1.085057823 | J21: -0.131353493 | K21: 1.12644693 | L21: 1.630007144 | M21: 0.5651427233 | N21: -1.022891734 | O21: http://agron-www.agron.iastate.edu/courses/Agron541/classes/541/lesson04a/4a.3.html
B22: =IF(P12=0,"Critical Geophysical Parameters NOT IDEAL for SPIS","Proceed to INPUT_Weight Setting") -> Proceed to INPUT_Weight Setting
F28: Non apte
F29: Peu apte
F30: Moyennement apte
F31: Très apte

Sheet INTRANT_Facteurs de pondération
D2: INTRANT – Facteurs de pondération
B6: Paramètres géophysiques :
B7: Paramètres géophysiques non critiques
B8: Paramètres complémentaires essentiels à l’évaluation du marché d’un SPIS. Ils n’affectent pas la viabilité générale d’un SPIS mais le succès de son adoption dans une région en fonction des conditions géophysiques dominantes (par ex. nappe phréatique, présence de gel, topographie, système de production agricole, etc.).
B9: Important
B10: =H40 -> 0.1363636364
B12: Conditions économiques :
B13: 1. Action gouvernementale | D13: 2. Action des organismes de développement | F13: 3. Financement
B14: Évaluation de l'action gouvernementale en tant que paramètre de l’environnement économique d’un SPIS, en consultant les politiques, les règles et les régulations qui régissent les secteurs solaires et ceux de l’irrigation. | D14: Cette section évalue l'action des organismes de développement susceptibles d’avoir une influence significative sur l’adoption de SPIS dans un pays ou une région. | F14: Ce paramètre examine la capacité des utilisateurs finaux à faire face aux coûts d’investissement élevés d’un SPIS ainsi que les subventions du gouvernement, des agences de développement et du secteur privé
B15: Important | D15: Important | F15: Important
B16: =H31 -> 0.1363636364 | D16: =H32 -> 0.1363636364 | F16: =H33 -> 0.1363636364
B18: 4. Disponibilité et coûts des énergies non solaires | D18: 5. Capacité technique | F18: 6. Sensibilisation aux technologies des SPIS
B19: Ce critère examine l’existence de sources d’énergie concurrentielles pour les systèmes d’irrigation et leur coût. | D19: Cette section évalue les compétences du personnel des pays dans la conception, la mise en œuvre et l'entretien des SPIS. | F19: Ce paramètre évalue la sensibilisation générale de la population du pays concerné aux technologies solaires telles que l’éclairage et le chauffage solaires et aux systèmes d’irrigation à énergie solaire tels que les pompes solaires.
B20: Important | D20: Critical | F20: Ignore
B21: =H34 -> 0.1363636364 | D21: =H35 -> 0.2272727273 | F21: =H36 -> 0
B23: 7. Part de l’agriculture dans l’économie locale | D23: 8. Régime foncier | F23: 9. Infrastructures de transport et de communication
B24: Cette section évalue l’importance de l’agriculture pour l’économie de la région cible en évaluant sa contribution au PIB et à l’emploi ainsi que la proportion de terres arables utilisées pour l’agriculture. | D24: Ce paramètre s'intéresse aux droits fonciers susceptibles d’entraver ou au contraire de favoriser l’adoption des SPIS. Importants en termes de sécurité d’investissement, les droits fonciers peuvent aussi servir à garantir les prêts. | F24: Cette section évalue la disponibilité des infrastructures et des systèmes de communication tels que les routes et les réseaux mobiles pour faciliter les chaînes d’approvisionnement ainsi que la circulation des personnes et des biens.
B25: Slightly important | D25: Ignore | F25: Ignore
B26: =H37 -> 0.09090909091 | D26: =H38 -> 0 | F26: =H39 -> 0
F30: Paramètre | G30: Pondération | H30: Pourcentage | I30: Score
F31: Action gouvernementale | G31: =B15 -> Important | H31: =I31/$I$41 -> 0.1363636364 | I31: =IF(B15="Inconsequential",2,IF(B15="Slightly important",4,IF(B15="Important",6,IF(B15="Very Important",8,IF(B15="Critical",10))))) -> 6
F32: Action des agences de développement | G32: =D15 -> Important | H32: =I32/$I$41 -> 0.1363636364 | I32: =IF(D15="Inconsequential",2,IF(D15="Slightly important",4,IF(D15="Important",6,IF(D15="Very Important",8,IF(D15="Critical",10))))) -> 6
F33: Financement | G33: =F15 -> Important | H33: =I33/$I$41 -> 0.1363636364 | I33: =IF(F15="Inconsequential",2,IF(F15="Slightly important",4,IF(F15="Important",6,IF(F15="Very Important",8,IF(F15="Critical",10))))) -> 6
F34: Disponibilité et coûts des énergies non solaires | G34: =B20 -> Important | H34: 0.1363636364 | I34: =IF(B20="Inconsequential",2,IF(B20="Slightly important",4,IF(B20="Important",6,IF(B20="Very Important",8,IF(B20="Critical",10))))) -> 6
F35: Capacité technique | G35: =D20 -> Critical | H35: 0.2272727273 | I35: =IF(D20="Inconsequential",2,IF(D20="Slightly important",4,IF(D20="Important",6,IF(D20="Very Important",8,IF(D20="Critical",10))))) -> 10
F36: Sensibilisation aux technologies PV et d'irrigation à énergie solaire | G36: =F20 -> Ignore | H36: 0 | I36: =IF(F20="Inconsequential",2,IF(F20="Slightly important",4,IF(F20="Important",6,IF(F20="Very Important",8,IF(F20="Critical",10))))) -> FALSE
F37: Part de l'agriculture dans l'économie locale | G37: =B25 -> Slightly important | H37: 0.09090909091 | I37: =IF(B25="Inconsequential",2,IF(B25="Slightly important",4,IF(B25="Important",6,IF(B25="Very Important",8,IF(B25="Critical",10))))) -> 4
F38: Régime foncier | G38: =D25 -> Ignore | H38: 0 | I38: =IF(D25="Inconsequential",2,IF(D25="Slightly important",4,IF(D25="Important",6,IF(D25="Very Important",8,IF(D25="Critical",10))))) -> FALSE
F39: Infrastructures de transport et de communication | G39: =F25 -> Ignore | H39: 0 | I39: =IF(F25="Inconsequential",2,IF(F25="Slightly important",4,IF(F25="Important",6,IF(F25="Very Important",8,IF(F25="Critical",10))))) -> FALSE
F40: Paramètres géophysiques complémentaires | G40: =B9 -> Important | H40: 0.1363636364 | I40: =IF(B9="Inconsequential",2,IF(B9="Slightly important",4,IF(B9="Important",6,IF(B9="Very Important",8,IF(B9="Critical",10))))) -> 6
F41: Total | G41: =SUM(G31:G40) -> 0 | H41: =SUM(H31:H40) -> 1 | I41: =SUM(I31:I40) -> 44

Sheet INTRANT_Paramètres géophysiques
C2: INTRANT - Paramètres géophysiques
A5: 2 | B5: Paramètres géophysiques complémentaires | E5: Score maximum | F5: Score obtenu
E6: ='INTRANT_Facteurs de pondération'!B10 -> 0.1363636364 | F6: =SUM(I8:I11) -> 0.07272727273
B7: Questions | C7: Sources de données | E7: Réponse | F7: Pertinence | H7: Pondération | I7: Score obtenu | J7: Score brut
A8: a) | B8: Quel est le niveau de nappe phréatique adapté à un SPIS? | C8: Estimation de la profondeur de la nappe phréatique | E8: 50m - 100m | F8: Inconsequential | H8: =E6/COUNTA(B8,B9,B10,B11) -> 0.03409090909 | I8: =(J8*H8) -> 0.003409090909 | J8: =IF(E8="Up to 7m",1,IF(E8="7m - 25m",0.8,IF(E8="25m - 50m",0.6,IF(E8="50m - 100m",0.1,IF(E8="Beyond 100m",0,IF(E8="Unknown",0))))))*IF(F8="Inconsequential",6,IF(F8="Slightly important",5,IF(F8="Important",4,IF(F8="Very important",3,IF(F8="Critical",2)))))/6 -> 0.1
A9: b) | B9: Quelle est la température ambiante annuelle minimum et notamment la fréquence du gel ? | C9: Base des températures mondiales de la World Bank | E9: Below 1C | F9: Important | H9: =(E6/COUNTA(B8,B9,B10,B11)) -> 0.03409090909 | I9: =(J9*H9) -> 0.01136363636 | J9: =IF(E9="1C to 30C",(IF(F9="Inconsequential",6,IF(F9="Slightly important",5,IF(F9="Important",4,IF(F9="Very important",3,IF(F9="Critical",2)))))),(IF(F9="Inconsequential",6,IF(F9="Slightly important",4,IF(F9="Important",2,IF(F9="Very important",1,IF(F9="Critical",0)))))))/6 -> 0.3333333333
A10: c) | B10: Quelle est la topographie générale de la zone considérée ? | C10: Quelle est la pente de la région concernée ? | E10: Flat | F10: Inconsequential | H10: =(E6/COUNTA(B8,B9,B10,B11)) -> 0.03409090909 | I10: =(J10*H10) -> 0.03409090909 | J10: =IF(E10="Flat",1,IF(E10="Moderate",0.8,IF(E10="Steep",0.6)))*IF(F10="Inconsequential",6,IF(F10="Slightly important",5,IF(F10="Important",4,IF(F10="Very important",3,IF(F10="Critical",2)))))/6 -> 1
A11: d) | B11: Quel est le type de système de production agricole prédominant ? | C11: Cartes des systèmes agricoles de la FAO | E11: Livestock and Crops | F11: Inconsequential | H11: =(E6/COUNTA(B8,B9,B10,B11)) -> 0.03409090909 | I11: =(J11*H11) -> 0.02386363636 | J11: =IF(E11="Seasonal Crops",0.6,IF(E11="Perennial Crops",0.8,IF(E11="Small Livestock",1,IF(E11="Large Livestock",0.9,IF(E11="Seasonal and Perennial Crops",0.7,IF(E11="Livestock and Crops",0.7))))))*IF(F11="Inconsequential",6,IF(F11="Slightly important",5,IF(F11="Important",4,IF(F11="Very important",3,IF(F11="Critical",2)))))/6 -> 0.7
B12: =IF((Calculations!G4)<(50 %), "Your score is below 50 % of your initial values for Geophysical Parameters! Please revise your weight setting!", "") -> 
C14: Vous disposez de sources de données plus actuelles ?
C15: MERCI DE NOUS LES COMMUNIQUER
C16: et de nous aider à améliorer cet outil.
C17: Nous apprécions votre coopération.

Sheet INTRANT_Environnement commercia
C2: INTRANT - Paramètres Environnement commercial
A5: 1 | B5: Action gouvernementale | E5: Score maximum possible | F5: Score obtenu
E6: ='INTRANT_Facteurs de pondération'!B16 -> 0.1363636364 | F6: =IF(OR(AND(E8="No",F8="Critical"),AND(E11="No",F11="Critical"),AND(E12="No",F12="Critical")),0,SUM(I8:I12)) -> 0.1363636364
B7: Questions | C7: Sources des données | E7: Réponse | F7: Pertinence | H7: Pondération | I7: Score obtenu | J7: Score brut
A8: a) | B8: Existe-t-il des politiques et des lois gouvernementales et locales de promotion des équipements solaires et d'irrigation ? | C8: • Politiques, projets de loi, lois, décrets, plans de développement sectoriels émis par le gouvernement en matière d'irrigation et/ou d'énergie solaire • Accréditation des techniciens, des fournisseurs et des entreprises sous-traitantes du solaire • Réglementations douanières et fiscales telles qu'exonérations des droits de douane et de TVA | D8: Politiques de développement des énergies renouvelables | E8: Yes | F8: Inconsequential | H8: =E6/COUNTA(B8:B12) -> 0.04545454545 | I8: =(J8*H8) -> 0.04545454545 | J8: =(IF(E8="Yes",(IF(F8="Inconsequential",6,IF(F8="Slightly important",5,IF(F8="Important",4,IF(F8="Very important",3,IF(F8="Critical",2)))))),(IF(F8="Inconsequential",3,IF(F8="Slightly important",2,IF(F8="Important",1,IF(F8="Very important",1,IF(F8="Critical",0))))))))/6 -> 1
D9: Politique de soutien aux EnR dans les pays en développement : tableau 4, p. 121
D10: Documents de politique générale des Pays de l'Asie-Pacifique
A11: b) | B11: Existe-t-il des programmes gouvernementaux faisant la promotion des équipements SPIS ? | C11: • Programme d'irrigation et d'énergie solaires soutenus par des ressources gouvernementales | E11: Yes | F11: Inconsequential | H11: =E6/COUNTA(B8:B12) -> 0.04545454545 | I11: =(J11*H11) -> 0.04545454545 | J11: =(IF(E11="Yes",(IF(F11="Inconsequential",6,IF(F11="Slightly important",5,IF(F11="Important",4,IF(F11="Very important",3,IF(F11="Critical",2)))))),(IF(F11="Inconsequential",3,IF(F11="Slightly important",2,IF(F11="Important",1,IF(F11="Very important",1,IF(F11="Critical",0))))))))/6 -> 1
A12: c) | B12: Existe-t-il des ministères et/ou des organismes gouvernementaux compétents qui apportent un soutien au secteur ? | C12: • Les ministères de l'agriculture et de l'énergie intervenant dans le secteur des SPIS • Organismes, comités, groupes de travail gouvernementaux du secteur de l'irrigation • Organismes gouvernementaux fournissant des informations relatives aux SPIS • Réglementation et application de la qualité et des normes gouvernementales | D12: Réglementations spécifiques des systèmes et incitations | E12: Yes | F12: Inconsequential | H12: =E6/COUNTA(B8:B12) -> 0.04545454545 | I12: =(J12*H12) -> 0.04545454545 | J12: =(IF(E12="Yes",(IF(F12="Inconsequential",6,IF(F12="Slightly important",5,IF(F12="Important",4,IF(F12="Very important",3,IF(F12="Critical",2)))))),(IF(F12="Inconsequential",3,IF(F12="Slightly important",2,IF(F12="Important",1,IF(F12="Very important",1,IF(F12="Critical",0))))))))/6 -> 1
A14: 2 | B14: Action des agences de développement | E14: Score maximum possible | F14: Score obtenu
E15: ='INTRANT_Facteurs de pondération'!D16 -> 0.1363636364 | F15: =IF(OR(AND(E17="No",F17="Critical"),AND(E18="No",F18="Critical")),0,SUM(I17:I20)) -> 0.1363636364
B16: Questions | C16: Sources des données | E16: Réponse | F16: Pertinence | H16: Pondération | I16: Score obtenu | J16: Score brut
A17: a) | B17: Existe-t-il des programmes nationaux mis en place par des institutions non-gouvernementales qui encouragent l'adoption des SPIS ? | C17: • Liste* d'agences de développement et d'organisations multilatérales : | D17: GIZ (Deutsche Gesellschaft für Internationale Zusammenarbeit GmbH) | E17: Yes | F17: Inconsequential | H17: =E15/(COUNTA(B17:B20)) -> 0.06818181818 | I17: =(J17*H17) -> 0.06818181818 | J17: =(IF(E17="Yes",(IF(F17="Inconsequential",6,IF(F17="Slightly important",5,IF(F17="Important",4,IF(F17="Very important",3,IF(F17="Critical",2)))))),(IF(F17="Inconsequential",3,IF(F17="Slightly important",2,IF(F17="Important",1,IF(F17="Very important",1,IF(F17="Critical",0))))))))/6 -> 1
A18: b) | B18: Existe-t-il des programmes nationaux mis en place par des institutions non gouvernementales qui font spécifiquement la promotion des équipements SPIS ? | C18: • Liste* d'organismes et de fonds : | D18: GEF (Global Environment Facility) | E18: Yes | F18: Inconsequential | H18: =E15/COUNTA(B17:B20) -> 0.06818181818 | I18: =(J18*H18) -> 0.06818181818 | J18: =(IF(E18="Yes",(IF(F18="Inconsequential",6,IF(F18="Slightly important",5,IF(F18="Important",4,IF(F18="Very important",3,IF(F18="Critical",2)))))),(IF(F18="Inconsequential",3,IF(F18="Slightly important",2,IF(F18="Important",1,IF(F18="Very important",1,IF(F18="Critical",0))))))))/6 -> 1
C19: • Liste* de centres de recherche et d'autres ONG : | D19: AGRA
C20: * Liste non exhaustive
A22: 3 | B22: Financement | E22: Score maximum possible | F22: Score obtenu
E23: ='INTRANT_Facteurs de pondération'!F16 -> 0.1363636364 | F23: =IF(OR(AND(E26=1,F26="Critical"),AND(E33="No",F33="Critical"), AND(E29=0,F29="Critical"), AND(E30=0,F30="Critical")),0,SUM(I25,I28,I33)) -> 0.1363636364
B24: Questions | C24: Sources de données nationales | E24: Questions | F24: Pertinence | H24: Pondération | I24: Score obtenu | J24: Score brut
A25: a) | B25: Capacité financière des utilisateurs finaux | H25: =E23/COUNTA(B25,B28,B33) -> 0.04545454545 | I25: =I26+I27 -> 0.04545454545
A26: i) | B26: Quelle proportion de la population rurale est pauvre selon l'indice de pauvreté multidimensionnelle ? | C26: OPHI Global MPI Interactive Databank: Population in multidimensional poverty (H) (%), Rural MPI Poor | E26: 0.2 | F26: Inconsequential | H26: =H25/COUNTA(B26:B27) -> 0.02272727273 | I26: =(H26*J26) -> 0.02272727273 | J26: =IF(F26="Inconsequential",1,(1-E26)) -> 1
A27: ii) | B27: Quelle est la valeur du RNB par habitant ? | C27: Données de la Banque mondiale : RNB par habitant, méthode Atlas ($ US courants) 2016 | E27: Low income ($1,005 or less) | F27: Inconsequential | H27: =H25/COUNTA(B26:B27) -> 0.02272727273 | I27: =(H27*J27) -> 0.02272727273 | J27: =(IF(F27="Inconsequential",5,IF(E27="Low income ($1,005 or less)",1,IF(E27="Lower Middle Income ($1,006 to $3,955)",2,IF(E27="Upper Middle Income ($3,956 to $12,235)",4,IF(E27="High Income ($12.236 or more)",5,))))))/(5) -> 1
A28: b) | B28: Existence de soutien par des institutions financières ? | H28: =E23/COUNTA(B25,B28,B33) -> 0.04545454545 | I28: =I29+I30+I32 -> 0.04545454545
A29: i) | B29: Quelle est la proportion de la population âgée de plus de 15 ans qui dispose d'un propre compte dans une institution financière ? | C29: i) Compte (% âge 15+) basé sur le pays ii) Emprunt officiel (% âge 15+) basé sur le pays | D29: Banque mondiale, Données sur l'inclusion financière | E29: 0.3 | F29: Inconsequential | H29: =H28/COUNTA(B29:B30,B32) -> 0.01515151515 | I29: =H29*J29 -> 0.01515151515 | J29: =IF(F29="Inconsequential",1,E29) -> 1
A30: ii) | B30: Quelle est la proportion de la population âgée de plus de 15 ans qui a contracté un emprunt auprès d'une institution financière au cours d'une année donnée* ? | E30: 0.2 | F30: Inconsequential | H30: =H28/COUNTA(B29:B30,B32) -> 0.01515151515 | I30: =H30*J30 -> 0.01515151515 | J30: =IF(F30="Inconsequential",1,E30) -> 1
B31: * l'année donnée est l'année la plus récente dans les données disponibles
A32: iii) | B32: Quel est le positionnement dans le classement de la facilité d'obtention de prêt ? | C32: Banque mondiale - Classement des économies (facilité à faire des affaires) 2017 | E32: 77 | F32: Inconsequential | H32: =H28/COUNTA(B29:B30,B32) -> 0.01515151515 | I32: =(H32*J32) -> 0.01515151515 | J32: =(IF(F32="Inconsequential",186,(186-E32)))/186 -> 1
A33: c) | B33: Existe-t-il des incitatifs économiques gouvernementaux qui influent sur l'adoption des dispositifs SPIS ? | C33: • Exonérations fiscales, subventions, rabais, crédits, etc. accordés aux clients des produits SPIS, aux fournisseurs ou à d'autres intermédiaires tels que les financiers | E33: Yes | F33: Inconsequential | H33: =E23/COUNTA(B25,B28,B33) -> 0.04545454545 | I33: =H33*J33 -> 0.04545454545 | J33: =(IF(E33="Yes",(IF(F33="Inconsequential",6,IF(F33="Slightly important",5,IF(F33="Important",4,IF(F33="Very important",3,IF(F33="Critical",2)))))),(IF(F33="Inconsequential",3,IF(F33="Slightly important",2,IF(F33="Important",1,IF(F33="Very important",1,IF(F33="Critical",0))))))))/6 -> 1
A35: 4 | B35: Disponibilité et coût des sources d'énergie non solaires pour le pompage | E35: Score maximum possible | F35: Score obtenu
E36: ='INTRANT_Facteurs de pondération'!B21 -> 0.1363636364 | F36: =IF(OR(AND(E39="Yes",F39="Critical"),AND(E40="Yes",F40="Critical"),AND(E47="Yes",F47="Critical"),AND(E48="Yes",F48="Critical")),0,SUM(I38,I46,I49)) -> 0.09090909091
B37: Questions | C37: Sources de données régionales | D37: Sources de données nationales | E37: Réponse | F37: Pertinence | H37: Pondération | I37: Score obtenu | J37: Score brut
A38: a) | B38: Disponibilité de sources d’énergie alternatives concurrentielles | H38: =E36/COUNTA(B38,B46,B49) -> 0.04545454545 | I38: =I39+I40+I45 -> 0.04545454545
A39: i) | B39: La zone concernée possède-t-elle des ressources en énergie fossile qu'elle exploite ? | C39: Réserves nationales en énergie fossile | E39: No | F39: Inconsequential | H39: =H38/(COUNTA(B39:B45)-1) -> 0.02272727273 | I39: =H39*J39 -> 0.02272727273 | J39: =IF(E39="No",IF(F39="Inconsequential",1,IF(F39="Important",0.5)),0) -> 1
A40: ii) | B40: La zone concernée se trouve-t-elle à proximité immédiate du réseau (à moins de 5 km d'un point d'accès au réseau) ou le taux d'électrification rurale est-il supérieur à 80 % ? | C40: Afrique - Réseau électrique | D40: Accès à l'électricité, taux d'électrification rurale | E40: No | F40: Inconsequential | H40: =H38/((COUNTA(B39:B45)-1)*2) -> 0.01136363636 | I40: =H40*J40 -> 0.01136363636 | J40: =IF(E40="No",IF(F40="Inconsequential",1,IF(F40="Important",0.5)),0) -> 1
C41: Europe - Réseau électrique
C42: USA - Réseau électrique | D42: Tracking SDG 7
C43: Australie - Réseau électrique | D43: Cartes du réseau
C44: Pour plus de précision, consulter les données réseau spécifiques à chaque pays
A45: iii) | B45: Quelle est la fréquence des coupures d'électricité dans la zone concernée ? | C45: • Fiabilité de l'approvisionnement local en électricité de la zone concernée | D45: Fréquence des coupures d'électricité | E45: Low | F45: Inconsequential | H45: =H38/((COUNTA(B39:B45)-1)*2) -> 0.01136363636 | I45: =H45*J45 -> 0.01136363636 | J45: =(IF(F45="Inconsequential",5,IF(E45="Low",1,IF(E45="Regular",2,IF(E45="High",4,IF(E45="Very high",5,))))))/5 -> 1
A46: b) | B46: Subventions | H46: =E36/COUNTA(B38,B46,B49) -> 0.04545454545 | I46: =I47+I48 -> 0.04545454545
A47: i) | B47: Y a-t-il une subvention de réseau dans la zone concernée, y compris pour les frais d'électricité et/ou les frais de raccordement au réseau ? | C47: • Réglementation locale de l'approvisionnement en électricité de la zone concernée | D47: Existence d'une subvention nationale à l'électricité | E47: No | F47: Inconsequential | H47: =H38/COUNTA(B47:B48) -> 0.02272727273 | I47: =H47*J47 -> 0.02272727273 | J47: =IF(E47="No",IF(F47="Inconsequential",1,IF(F47="Important",0.5)),0) -> 1
A48: ii) | B48: Y a-t-il une subvention pour le carburant dans la zone concernée ? | C48: • Réglementation locale de l'approvisionnement en carburant de la zone concernée | D48: Existence d'une subvention nationale au carburant (diesel, kérosène, etc.) | E48: No | F48: Inconsequential | H48: =H38/COUNTA(B47:B48) -> 0.02272727273 | I48: =H48*J48 -> 0.02272727273 | J48: =IF(E48="No",IF(F48="Inconsequential",1,IF(F48="Important",0.5)),0) -> 1
A49: c) | B49: Comparaison des coûts | H49: =E36/COUNTA(B38,B46,B49) -> 0.04545454545 | I49: =I50+I51 -> 0
A50: i) | B50: Quel est le tarif moyen de l'électricité en USD par kWh pour les agriculteurs dans la zone concernée ? | C50: • Coût de l'approvisionnement local en électricité en USD par kWh dans la zone concernée | D50: Tarif de l'électricité (moyenne de tous les consommateurs finaux) en USD/kWh | F50: La référence pour la pénalité la moins élevée sera de 1 USD/kWh, avec l'électricité la plus chère, arrondie au nombre entier supérieur (0,61) | H50: =H49/COUNTA(B50:B51) -> 0.02272727273 | I50: =H50*J50 -> 0 | J50: =E50 -> 0
A51: ii) | B51: Quel est le prix de détail moyen du diesel en USD par litre dans la zone concernée ? | C51: • Coût moyen local du diesel en USD/Litre de la zone concernée | D51: Prix du diesel en USD/Liter | F51: La référence pour la pénalité la moins élevée sera de 3 USD/L , prix de l'Islande, avec le diesel le plus cher, arrondie au nombre entier supérieur (2.03) | H51: =H49/COUNTA(B50:B51) -> 0.02272727273 | I51: =H51*J51 -> 0 | J51: =E51/3 -> 0
A53: 5 | B53: Capacité technique pour les SPIS | E53: Score maximum possible | F53: Score obtenu
E54: ='INTRANT_Facteurs de pondération'!D21 -> 0.2272727273 | F54: =IF(OR(AND(E56="No",F56="Critical"),AND(E57="No",F57="Critical"),AND(E58="No",F58="Critical")),0,SUM(I56:I58)) -> 0.1893939394
B55: Questions | C55: Sources de données nationales | E55: Réponse | F55: Pertinence | H55: Pondération | I55: Score obtenu | J55: Score brut
A56: a) | B56: Existe-t-il des sessions de formation sur les technologies solaires et leurs applications (conception, O&M et réparations) ? | C56: ="• Cours sur les systèmes et technologies solaires dans les établissements d'enseignement" -> • Cours sur les systèmes et technologies solaires dans les établissements d'enseignement | E56: No | F56: Inconsequential | H56: =E54/COUNTA(B56:B58) -> 0.07575757576 | I56: =(J56*H56) -> 0.03787878788 | J56: =(IF(E56="Yes",(IF(F56="Inconsequential",6,IF(F56="Slightly important",5,IF(F56="Important",4,IF(F56="Very important",3,IF(F56="Critical",2)))))),(IF(F56="Inconsequential",3,IF(F56="Slightly important",2,IF(F56="Important",1,IF(F56="Very important",1,IF(F56="Critical",0))))))))/6 -> 0.5
A57: b) | B57: Les techniciens solaires ont-ils été accrédités par le gouvernement pour effectuer ce travail ? | C57: • Réglementation gouvernementale sur l'accréditation des techniciens solaires | E57: Yes | F57: Inconsequential | H57: =E54/COUNTA(B56:B58) -> 0.07575757576 | I57: =(J57*H57) -> 0.07575757576 | J57: =(IF(E57="Yes",(IF(F57="Inconsequential",6,IF(F57="Slightly important",5,IF(F57="Important",4,IF(F57="Very important",3,IF(F57="Critical",2)))))),(IF(F57="Inconsequential",3,IF(F57="Slightly important",2,IF(F57="Important",1,IF(F57="Very important",1,IF(F57="Critical",0))))))))/6 -> 1
A58: c) | B58: La technologie solaire est-elle intégrée au programme d'études des cours ou des programmes agricoles dispensés par les établissements de formation agricole ? | C58: ="• Cours sur les systèmes et les technologies solaires des établissements d'enseignement." -> • Cours sur les systèmes et les technologies solaires des établissements d'enseignement. | E58: Yes | F58: Inconsequential | H58: =E54/COUNTA(B56:B58) -> 0.07575757576 | I58: =(J58*H58) -> 0.07575757576 | J58: =(IF(E58="Yes",(IF(F58="Inconsequential",6,IF(F58="Slightly important",5,IF(F58="Important",4,IF(F58="Very important",3,IF(F58="Critical",2)))))),(IF(F58="Inconsequential",3,IF(F58="Slightly important",2,IF(F58="Important",1,IF(F58="Very important",1,IF(F58="Critical",0))))))))/6 -> 1
A60: 6 | B60: Sensibilisation aux technologies PV et d’irrigation à énergie solaire | E60: Score maximum possible | F60: Score obtenu
E61: ='INTRANT_Facteurs de pondération'!F21 -> 0 | F61: =IF(OR(AND(E64="No",F64="Critical"),AND(E68="No",F68="Critical"),AND(E65="No",F65="Critical"),AND(E69=0,F69="Critical")),0,SUM(I63,I67,)) -> 0
B62: Questions | C62: Sources de données nationales | E62: Question | F62: Pertinence | H62: Pondération | I62: Score obtenu | J62: Score brut
A63: a) | B63: Énergie solaire | H63: =E61/COUNTA(B63,B67) -> 0 | I63: =I64+I65+I66 -> 0
A64: i) | B64: Y a-t-il une augmentation cumulative de la puissance installée de l'énergie solaire entre 2012 et 2016 ? | C64: IRENA dashboard: Trends in Renewable Energy | E64: Yes | F64: Inconsequential | H64: =H63/COUNTA(B64:B66) -> 0 | I64: =(J64*H64) -> 0 | J64: =(IF(E64="Yes",(IF(F64="Inconsequential",6,IF(F64="Slightly important",5,IF(F64="Important",4,IF(F64="Very important",3,IF(F64="Critical",2)))))),(IF(F64="Inconsequential",3,IF(F64="Slightly important",2,IF(F64="Important",1,IF(F64="Very important",1,IF(F64="Critical",0))))))))/6 -> 1
A65: ii) | B65: Y a-t-il une augmentation générale de l'énergie solaire nette additionnelle annuelle installée entre 2012 et 2016 ? | E65: Yes | F65: Inconsequential | H65: =H63/COUNTA(B64:B66) -> 0 | I65: =(J65*H65) -> 0 | J65: =(IF(E65="Yes",(IF(F65="Inconsequential",6,IF(F65="Slightly important",5,IF(F65="Important",4,IF(F65="Very important",3,IF(F65="Critical",2)))))),(IF(F65="Inconsequential",3,IF(F65="Slightly important",2,IF(F65="Important",1,IF(F65="Very important",1,IF(F65="Critical",0))))))))/6 -> 1
A66: iii) | B66: Quelle est la part de l'énergie solaire dans la capacité énergétique totale installée ? | E66: 0.05 | F66: Important | H66: =H63/COUNTA(B64:B66) -> 0 | I66: =(J66*H66) -> 0 | J66: =IF(F66="Inconsequential",0.5,E66) -> 0.05
A67: b) | B67: Réseaux de distribution pour systèmes solaires et d'irrigation à énergie solaire | H67: =E61/COUNTA(B63,B67) -> 0 | I67: =I68+I69 -> 0
A68: i) | B68: Existe-t-il sur le marché des fournisseurs et/ou des distributeurs de systèmes de pompes à eau de marque mondiale ? | C68: • Liste des principaux systèmes et fournisseurs de pompes à eau | D68: Ebara | E68: Yes | F68: Inconsequential | H68: =H67/COUNTA(B68:B69) -> 0 | I68: =(J68*H68) -> 0 | J68: =(IF(E68="Yes",(IF(F68="Inconsequential",6,IF(F68="Slightly important",5,IF(F68="Important",4,IF(F68="Very important",3,IF(F68="Critical",2)))))),(IF(F68="Inconsequential",3,IF(F68="Slightly important",2,IF(F68="Important",1,IF(F68="Very important",1,IF(F68="Critical",0))))))))/6 -> 1
A69: ii) | B69: Existe-t-il sur le marché des fournisseurs et/ou des distributeurs de systèmes photovoltaïques solaires de marque mondiale ? | C69: • Liste des principaux systèmes et fournisseurs de solaire PV | D69: Ebara | E69: Yes | F69: Inconsequential | H69: =H67/COUNTA(B68:B69) -> 0 | I69: =(J69*H69) -> 0 | J69: =(IF(E69="Yes",(IF(F69="Inconsequential",6,IF(F69="Slightly important",5,IF(F69="Important",4,IF(F69="Very important",3,IF(F69="Critical",2)))))),(IF(F69="Inconsequential",3,IF(F69="Slightly important",2,IF(F69="Important",1,IF(F69="Very important",1,IF(F69="Critical",0))))))))/6 -> 1
A71: 7 | B71: Part de l'agriculture dans l'économie locale | E71: Score maximum possible | F71: Score obtenu
E72: ='INTRANT_Facteurs de pondération'!B26 -> 0.09090909091 | F72: =IF(OR(AND(E74=0,F74="Critical"),AND(E76=0,F76="Critical"),AND(E77=0,F77="Critical")),0,SUM(I74:I78)) -> 0.04545454545
B73: Questions | C73: Sources de données nationales | E73: Réponse | F73: Pertinence | H73: Pondération | I73: Score obtenu | J73: Score brut
A74: a) | B74: Quelle est la proportion de la population active employée dans le secteur agricole ? | C74: Banque mondiale - Indicateurs par pays en 2018 (données les plus récentes) - Emplois dans l'agriculture (% du total des emplois) | F74: Inconsequential | H74: =E72/COUNTA(B74:B78) -> 0.01818181818 | I74: =(J74*H74) -> 0.009090909091 | J74: =IF(F74="Inconsequential",0.5,E74) -> 0.5
A75: b) | B75: Quelle est la proportion de la population rurale ? | C75: Banque mondiale - Population rurale (% de la population totale) en 2017 | F75: Inconsequential | H75: =E72/COUNTA(B74:B78) -> 0.01818181818 | I75: =(J75*H75) -> 0.009090909091 | J75: =IF(F75="Inconsequential",0.5,E75) -> 0.5
A76: c) | B76: Quelle est la part de la production agricole dans le PIB national ? | C76: Banque mondiale - Indicateurs par pays en 2017 (données les plus récentes) - Agriculture, valeur ajoutée (% du PIB) | F76: Inconsequential | H76: =E72/COUNTA(B74:B78) -> 0.01818181818 | I76: =(J76*H76) -> 0.009090909091 | J76: =IF(F76="Inconsequential",0.5,E76) -> 0.5
A77: e) | B77: Quelle est la proportion des terres agricoles par rapport à l'ensemble des terres ? | C77: Banque mondiale - Indicateurs par pays en 2016 (données les plus récentes) - Terres agricoles (% du territoire) | F77: Inconsequential | H77: =E72/COUNTA(B74:B78) -> 0.01818181818 | I77: =(J77*H77) -> 0.009090909091 | J77: =IF(F77="Inconsequential",0.5,E77) -> 0.5
A78: d) | B78: Quel pourcentage des terres cultivées est déjà irrigué ? | C78: FAO, carte Aquastat - Part de la superficie cultivée irriguée (%) | F78: Inconsequential | H78: =E72/COUNTA(B74:B78) -> 0.01818181818 | I78: =(J78*H78) -> 0.009090909091 | J78: =IF(F78="Inconsequential",0.5,E78)+IF(E78>E77,"0,25","0") -> 0.5
A80: 8 | B80: Droits d'utilisation des terres, propriété et régime foncier | E80: Score maximum possible | F80: Score obtenu
E81: ='INTRANT_Facteurs de pondération'!D26 -> 0 | F81: =SUM(I83:I87) -> 0
B82: Questions | C82: Sources de données nationales | E82: Réponse | F82: Pertinence | H82: Pondération | I82: Score obtenu | J82: Score brut
A83: a) | B83: Quelle proportion de la superficie totale des terres est constituée de terres autochtones et communautaires ? | C83: Landmark: Global platform of indigenous and community lands | E83: 0.6 | F83: Inconsequential | H83: =$E$81/COUNTA(B83,B85,B87) -> 0 | I83: =(J83*H83) -> 0 | J83: =IF(F83="Inconsequential",0.5,(1-E83)) -> 0.5
B84: Impact de la densité de population sur les SPIS | C84: Sources de données sur la densité de population | D84: Densité de population | H84: =$E$81/COUNTA(B83,B85,B87) -> 0 | I84: =(J84*H84) -> 0 | J84: =IF(E85="Positive",(IF(F85="Inconsequential",6,IF(F85="Slightly important",5,IF(F85="Important",4,IF(F85="Very important",3,IF(F85="Critical",2)))))),(IF(F85="Inconsequential",3,IF(F85="Slightly important",2,IF(F85="Important",1,IF(F85="Very important",1,IF(F85="Critical",0)))))))/6 -> 0.6666666667
A85: b) | B85: La densité de population a-t-elle un effet positif ou négatif sur le marché des SPIS ? | C85: Index Mundi - Densité de population - Monde | D85: <1 | E85: Positive | F85: Important
A87: c) | B87: La densité de population a-t-elle un effet positif ou négatif sur la surface de terres agricoles disponibles ? | E87: Positive | F87: Inconsequential | H87: =$E$81/COUNTA(B83,B85,B87) -> 0 | I87: =(J87*H87) -> 0 | J87: =IF(E87="Positive",(IF(F87="Inconsequential",6,IF(F87="Slightly important",5,IF(F87="Important",4,IF(F87="Very important",3,IF(F87="Critical",2)))))),(IF(F87="Inconsequential",3,IF(F87="Slightly important",2,IF(F87="Important",1,IF(F87="Very important",1,IF(F87="Critical",0)))))))/6 -> 1
A90: 9 | B90: Infrastructures de transport et de communication | E90: Score maximum possible | F90: Score obtenu
E91: ='INTRANT_Facteurs de pondération'!F26 -> 0 | F91: =I93+I99 -> 0
B92: Questions | C92: Sources de données nationales | E92: Réponse | F92: Pertinence | H92: Pondération | I92: Score obtenu | J92: Score brut
A93: a) | B93: Transport | H93: =E91/COUNTA(B93,B99) -> 0 | I93: =I94+I95+I97+I98+I96 -> 0
A94: i) | B94: Quel est le score de qualité des infrastructures du transport aérien ? | C94: Données sur la mobilité à travers le monde - Aperçu par pays | F94: Inconsequential | H94: =H93/COUNTA(B94:B98) -> 0 | I94: =(J94*H94) -> 0 | J94: =(IF(F94="Inconsequential",3.5,E94))/7 -> 0.5
A95: ii) | B95: Quel est le score de qualité des infrastructures portuaires ? | F95: Inconsequential | H95: =H93/COUNTA(B94:B98) -> 0 | I95: =(J95*H95) -> 0 | J95: =(IF(F95="Inconsequential",3.5,E95))/7 -> 0.5
A96: iii) | B96: Quel est le score de qualité des infrastructures du réseau routier ? | F96: Inconsequential | H96: =H93/COUNTA(B94:B98) -> 0 | I96: =(J96*H96) -> 0 | J96: =(IF(F96="Inconsequential",3.5,E96))/7 -> 0.5
A97: iv) | B97: Quel est le score de qualité des infrastructures du réseau ferroviaire ? | F97: Inconsequential | H97: =H93/COUNTA(B94:B98) -> 0 | I97: =(J97*H97) -> 0 | J97: =(IF(F97="Inconsequential",3.5,E97))/7 -> 0.5
A98: v) | B98: Quel est le niveau de l'indice de performance logistique global ? | C98: Indice de performance logistique : Qualité de l'infrastructure commerciale et des transports (1=faible à 5=élevée) | F98: Inconsequential | H98: =H93/COUNTA(B94:B98) -> 0 | I98: =(J98*H98) -> 0 | J98: =(IF(F98="Inconsequential",2.5,E98))/5 -> 0.5
A99: b) | B99: Communication | H99: =E91/COUNTA(B93,B99) -> 0 | I99: =I100+I101+I102 -> 0
A100: i) | B100: Quel est le nombre d'abonnés à des services de téléphonie mobile cellulaire pour 100 habitants ? | C100: International Telecommunications Union, global ICT Development Index (IDI) statistics | F100: Inconsequential | H100: =H99/COUNTA(B100:B102) -> 0 | I100: =(J100*H100) -> 0 | J100: =(IF(F100="Inconsequential",50,E100))/100 -> 0.5
A101: i) | B101: Quel est le nombre d'abonnements actifs au haut-débit mobile pour 100 habitants ? | F101: Inconsequential | H101: =H99/COUNTA(B100:B102) -> 0 | I101: =(J101*H101) -> 0 | J101: =(IF(F101="Inconsequential",50,E101))/100 -> 0.5
A102: iii) | B102: Quel est l'indice de développement des TIC global - IDI - en 2017? | F102: Inconsequential | H102: =H99/COUNTA(B100:B102) -> 0 | I102: =(J102*H102) -> 0 | J102: =(IF(F102="Inconsequential",5,E102))/10 -> 0.5
C105: Vous disposez de sources de données plus actuelles?
C106: MERCI DE NOUS LES COMMUNIQUER
C107: et de nous aider à améliorer cet outil.
C108: Nous apprécions votre coopération.

Sheet RÉSULTAT PRODUIT_Résultat
D2: RÉSULTAT PRODUIT - Résultats de l’analyse du marché
B4: Pays : | C4: ='INTRANT_Vérification préliminai'!D6 -> Angola | G4: Date d'évaluation : | I4: ='INTRANT_Vérification préliminai'!D8 -> 00:00:00
B5: Zone spécifique concernée : | C5: ='INTRANT_Vérification préliminai'!D7 -> 0 | G5: Nom de l'évaluateur : | I5: ='INTRANT_Vérification préliminai'!D9 -> 0
B7: A. Potentiel de marché pour SPIS : scores et pertinences
B9: Score total (%) | H9: Aperçu des résultats de pertinence
B23: B. Potentiel de marché pour SPIS : score global
L27: Obstacle majeur à l'accès au marché
L28: Obstacle mineur à l'accès au marché
L29: Puissance de marché mineure
L30: Puissance de marché majeure
B52: C. Potentiel de marché pour SPIS : score comparé à la pondération

Sheet Calculations (hidden)
B3: Enabling SPIS Business Factors | C3: Initial weight setting | D3: Actually attained score | E3: Difference | G3: Attained Score
A4: 1 | B4: Geophysical Parameters | C4: ='INTRANT_Paramètres géophysiques'!E6 -> 0.1363636364 | D4: ='INTRANT_Paramètres géophysiques'!F6 -> 0.07272727273 | E4: =C4-D4 -> 0.06363636364 | F4: =100%-C4 -> 0.8636363636 | G4: =D4/C4 -> 0.5333333333
A5: 2 | B5: Government interventions | C5: ='INTRANT_Environnement commercia'!E6 -> 0.1363636364 | D5: ='INTRANT_Environnement commercia'!F6 -> 0.1363636364 | E5: =C5-D5 -> 0 | F5: =100%-C5 -> 0.8636363636 | G5: =D5/C5 -> 1
A6: 3 | B6: Development Organizations Interventions | C6: ='INTRANT_Environnement commercia'!E15 -> 0.1363636364 | D6: ='INTRANT_Environnement commercia'!F15 -> 0.1363636364 | E6: =C6-D6 -> 0 | F6: =100%-C6 -> 0.8636363636 | G6: 1
A7: 4 | B7: Financing | C7: ='INTRANT_Environnement commercia'!E23 -> 0.1363636364 | D7: ='INTRANT_Environnement commercia'!F23 -> 0.1363636364 | E7: 0 | F7: 0.8636363636 | G7: 1
A8: 5 | B8: Availability and cost of alternative sources of power for pumping | C8: ='INTRANT_Environnement commercia'!E36 -> 0.1363636364 | D8: ='INTRANT_Environnement commercia'!F36 -> 0.09090909091 | E8: 0.04545454545 | F8: 0.8636363636 | G8: 0.6666666667
A9: 6 | B9: Technical capacity for SPIS | C9: ='INTRANT_Environnement commercia'!E54 -> 0.2272727273 | D9: ='INTRANT_Environnement commercia'!F54 -> 0.1893939394 | E9: 0.03787878788 | F9: 0.7727272727 | G9: 0.8333333333
A10: 7 | B10: Awareness of solar PV and irrigation technologies | C10: ='INTRANT_Environnement commercia'!E61 -> 0 | D10: ='INTRANT_Environnement commercia'!F61 -> 0 | E10: 0 | F10: 1
A11: 8 | B11: Significance of agriculture in the local economy | C11: ='INTRANT_Environnement commercia'!E72 -> 0.09090909091 | D11: ='INTRANT_Environnement commercia'!F72 -> 0.04545454545 | E11: 0.04545454545 | F11: 0.9090909091 | G11: 0.5
A12: 9 | B12: Land use rights, ownership and tenure | C12: ='INTRANT_Environnement commercia'!E81 -> 0 | D12: ='INTRANT_Environnement commercia'!F81 -> 0 | E12: 0 | F12: 1
A13: 10 | B13: Transportation and communication infrastructure | C13: ='INTRANT_Environnement commercia'!E91 -> 0 | D13: ='INTRANT_Environnement commercia'!F91 -> 0 | E13: 0 | F13: 1
C14: =SUM(C4:C13) -> 1 | D14: =SUM(D4:D13) -> 0.8075757576 | E14: =C14-D14 -> 0.1924242424
B21: GEOPHYSICAL Parameters
C22: Doughnut | D22: Pie
B23: Red Zone | C23: 30 | D23: =IF('INTRANT_Vérification préliminai'!T14=0,10, IF('INTRANT_Vérification préliminai'!T14=1,7, IF('INTRANT_Vérification préliminai'!T14=2,14, IF('INTRANT_Vérification préliminai'!T14=3,21, IF('INTRANT_Vérification préliminai'!T14=4,30, IF('INTRANT_Vérification préliminai'!T14=5,45, IF('INTRANT_Vérification préliminai'!T14=6,60, IF('INTRANT_Vérification préliminai'!T14=7,75, IF('INTRANT_Vérification préliminai'!T14=8,100,115))))))))) -> 75 | E23: Value
B24: Orange Zone | C24: 30 | D24: 1 | E24: Ticker
B25: Yellow Zone | C25: 30 | D25: =240-D23-D24 -> 164 | E25: Rest Value
B26: Green Zone | C26: 30
B27: Hidden Zone | C27: 120
B30: Relevance | C30: Business | D30: Geophysical | E30: Total
B31: Inconsequential | C31: =(COUNTIF('INTRANT_Environnement commercia'!$F$8:$F$102,Calculations!B31))/44 -> 0.8636363636 | D31: =(COUNTIF('INTRANT_Paramètres géophysiques'!$F$8:$F$11,Calculations!B31))/44 -> 0.06818181818 | E31: =SUM(C31:D31) -> 0.9318181818
B32: Slightly important | C32: =(COUNTIF('INTRANT_Environnement commercia'!$F$8:$F$102,Calculations!B32))/44 -> 0 | D32: =(COUNTIF('INTRANT_Paramètres géophysiques'!$F$8:$F$11,Calculations!B32))/44 -> 0 | E32: =SUM(C32:D32) -> 0
B33: Important | C33: =(COUNTIF('INTRANT_Environnement commercia'!$F$8:$F$102,Calculations!B33))/44 -> 0.04545454545 | D33: =(COUNTIF('INTRANT_Paramètres géophysiques'!$F$8:$F$11,Calculations!B33))/44 -> 0.02272727273 | E33: =SUM(C33:D33) -> 0.06818181818
B34: Very important | C34: =(COUNTIF('INTRANT_Environnement commercia'!$F$8:$F$102,Calculations!B34))/44 -> 0 | D34: =(COUNTIF('INTRANT_Paramètres géophysiques'!$F$8:$F$11,Calculations!B34))/44 -> 0 | E34: =SUM(C34:D34) -> 0
B35: Critical | C35: =(COUNTIF('INTRANT_Environnement commercia'!$F$8:$F$102,Calculations!B35))/44 -> 0 | D35: =(COUNTIF('INTRANT_Paramètres géophysiques'!$F$8:$F$11,Calculations!B35))/44 -> 0 | E35: =SUM(C35:D35) -> 0
C36: =SUM(C31:C35) -> 0.9090909091 | D36: =SUM(D31:D35) -> 0.09090909091 | E36: =SUM(E31:E35) -> 1

Sheet Feuille de Traduction
A2: FEUILLE DE TRADUCTION
A4: INTRODUCTION
A5: Certains textes utilisés dans cet outil sont utilisés dans des formules qui utilisent la reconnaissance de texte. Afin de préserver l'intégrité et la fonctionnalité de la formule, ces textes resteront en anglais. Une liste de ces textes et leur traduction correspondante est compilée ci-dessous :
A6: Texte original en anglais | B6: Feuille | C6: Traduction francaise
A7: 1C to 30C | B7: INPUT_Geophysical Parameters | C7: De 1° C à 30° C
A8: Actually attained score | B8: OUTPUT_Result | C8: Score actuellement obtenu
A9: Additional Geophysical Parameters | B9: INPUT_Weight setting | C9: Paramètres géophysiques complémentaires
A10: Additional Geophysical Parameters | B10: OUTPUT_Result | C10: Paramètres géophysiques complémentaires
A11: Availability and Cost of Alternatives | B11: INPUT_Weight setting | C11: Disponibilité et coûts des énergies non solaires
A12: Availability and Cost of Alternatives | B12: OUTPUT_Result | C12: Disponibilité et coûts des énergies non solaires
A13: Awareness of Solar PV and Irrigation Tecnologies | B13: INPUT_Weight setting | C13: Sensibilisation au PV et aux technologies d'irrigation à énergie solaire
A14: Awareness of Solar PV and Irrigation Tecnologies | B14: OUTPUT_Result | C14: Sensibilisation au PV et aux technologies d'irrigation à énergie solaire
A15: Bare areas (sand dunes, gravel plains, etc) | B15: INPUT_Pre-check | C15: Zones dénudées (dunes de sable, plaines de gravier, etc.)
A16: Below 1C | B16: INPUT_Geophysical Parameters | C16: Inférieur à 1° C
A17: Beyond 100 m | B17: INPUT_Geophysical Parameters | C17: Sup. à 100 m
A18: Critical | B18: various sheets | C18: Critique
A19: Cropland irrigated or post-flooding | B19: INPUT_Pre-check | C19: Terres cultivées irriguées ou après inondation
A20: Cropland, rainfed | B20: INPUT_Pre-check | C20: Terres cultivées, pluviales
A21: Dense forest closed (tree cover above 40%) | B21: INPUT_Pre-check | C21: Forêt dense fermée (couvert forestier supérieur à 40 %)
A22: Development Organizations Interventions | B22: INPUT_Weight setting | C22: Action des organismes de développement
A23: Development Organizations Interventions | B23: OUTPUT_Result | C23: Action des organismes de développement
A24: Financing | B24: INPUT_Weight setting | C24: Financement
A25: Financing | B25: OUTPUT_Result | C25: Financement
A26: Flat | B26: INPUT_Geophysical Parameters | C26: Plane
A27: Flood plains brackish water | B27: INPUT_Pre-check | C27: Eaux saumâtres des plaines inondables
A28: Flood plains fresh water | B28: INPUT_Pre-check | C28: Plaines inondables eau douce
A29: Geophysical Parameters | B29: OUTPUT_Result | C29: Paramètres géophysiques
A30: Government Interventions | B30: INPUT_Weight setting | C30: Action gouvernementale
A31: Government Interventions | B31: OUTPUT_Result | C31: Action gouvernementale
A32: Grassland | B32: INPUT_Pre-check | C32: Pâturage
A33: High | B33: INPUT_Business Conditions | C33: Élevée
A34: High Income ($12.236 or more) | B34: INPUT_Business Conditions | C34: Revenu élevé ($ 12 236 ou plus)
A35: Highly Suitable | B35: INPUT_Pre-check | C35: Très apte
A36: Ignore | B36: various sheets | C36: Négligeable
A37: Important | B37: various sheets | C37: Importante
A38: Inconsequential | B38: various sheets | C38: Inconséquente
A39: Initial weight setting | B39: OUTPUT_Result | C39: Pondération initiale
A40: Land Tenure | B40: INPUT_Weight setting | C40: Régime foncier
A41: Land Tenure | B41: OUTPUT_Result | C41: Régime foncier
A42: Large Livestock | B42: INPUT_Geophysical Parameters | C42: Grand élevage
A43: Lichens and mosses | B43: INPUT_Pre-check | C43: Lichens et mousses
A44: Light forest open (tree cover up to 40%) | B44: INPUT_Pre-check | C44: Forêt claire ouverte (couvert forestier jusqu'à 40 %)
A45: Livestock and Crops | B45: INPUT_Geophysical Parameters | C45: Cultures et élevages
A46: Low | B46: INPUT_Business Conditions | C46: Faible
A47: Low income ($1,005 or less) | B47: INPUT_Business Conditions | C47: Bas revenu ($ 1 005 ou moins)
A48: Lower Middle Income ($1,006 to $3,955) | B48: INPUT_Business Conditions | C48: Revenu moyen inférieur ($ 1 006 à $ 3 955)
A49: Marginally Suitable | B49: INPUT_Pre-check | C49: Peu apte
A50: Medium forest open to closed (tree cover above 40%) | B50: INPUT_Pre-check | C50: Forêt à densité moyenne (couverture arborée supérieure à 40%)
A51: Moderate | B51: INPUT_Geophysical Parameters | C51: Modérée
A52: Moderately Suitable | B52: INPUT_Pre-check | C52: Moyennement apte
A53: Mosaic crop land with natural vegetation | B53: INPUT_Pre-check | C53: Terres cultivées en mosaïque avec végétation naturelle
A54: Negative | B54: INPUT_Business Conditions | C54: Négatif
A55: No | B55: various sheets | C55: Non
A56: Not Suitable | B56: INPUT_Pre-check | C56: Non apte
A57: Perennial Crops | B57: INPUT_Geophysical Parameters | C57: Cultures vivaces
A58: Permanent snow and ice | B58: INPUT_Pre-check | C58: Neige et glace permanentes
A59: Positive | B59: INPUT_Business Conditions | C59: Positif
A60: Regular | B60: INPUT_Business Conditions | C60: Moyenne
A61: Seasonal and Perennial Crops | B61: INPUT_Geophysical Parameters | C61: Cultures saisonnières et vivaces
A62: Seasonal Crops | B62: INPUT_Geophysical Parameters | C62: Cultures saisonnières
A63: Semi arid sparse vegetation | B63: INPUT_Pre-check | C63: Végétation clairsemée semi-aride
A64: Shrubland | B64: INPUT_Pre-check | C64: Arbustes
A65: Significance of Agriculture to the Local Economy | B65: INPUT_Weight setting | C65: Part de l'agriculture dans l'économie locale
A66: Significance of Agriculture to the Local Economy | B66: OUTPUT_Result | C66: Part de l'agriculture dans l'économie locale
A67: Slightly important | B67: various sheets | C67: Peu importante
A68: Small Livestock | B68: INPUT_Geophysical Parameters | C68: Petit élevage
A69: SPIS Suitability | B69: INPUT_Pre-check | C69: Aptitude d'un SPIS
A70: Steep | B70: INPUT_Geophysical Parameters | C70: Escarpée
A71: Technical Capacity | B71: INPUT_Weight setting | C71: Capacité technique
A72: Technical Capacity | B72: OUTPUT_Result | C72: Capacité technique
A73: Transport and Communication Infrastructure | B73: INPUT_Weight setting | C73: Infrastructures de transport et de communication
A74: Transport and Communication Infrastructure | B74: OUTPUT_Result | C74: Infrastructures de transport et de communication
A75: Unknown | B75: various sheets | C75: Non renseigné
A76: Unknown | B76: INPUT_Business Conditions | C76: Non renseigné
A77: Up to 7 m | B77: INPUT_Geophysical Parameters | C77: Jusqu’à 7m
A78: Upper Middle Income ($3,956 to $12,235) | B78: INPUT_Business Conditions | C78: Revenu moyen (de $ 3 956 à $ 12 235)
A79: Urban areas | B79: INPUT_Pre-check | C79: Zones urbaines
A80: Very High | B80: INPUT_Business Conditions | C80: Très élevée
A81: Very important | B81: various sheets | C81: Très importante
A82: Water bodies | B82: INPUT_Pre-check | C82: Plans d'eau
A83: Weight Setting | B83: INPUT_Weight setting | C83: Pondération
A84: Yes | B84: various sheets | C84: Oui
A86: Critical Geophysical Parameters NOT IDEAL for SPIS | B86: INPUT_Pre-check | C86: Paramètres géophysiques critiques - NON IDÉAL pour les SPIS
A87: Proceed to INPUT_Weight Setting | B87: INPUT_Pre-check | C87: Se reporter à INTRANT – Facteurs de pondération

Sheet Lists (hidden)
A1: Countries | B1: Development Agencies | C1: Facilitites and Funds | D1: Other NGOs, Foundations | E1: Rural MPI | F1: GNI per Capita | G1: pump manufacturers
A2: Afghanistan | B2: African Development Bank | C2: CTF (Clean Technology Fund) | D2: AAA (Adaptation of African Agriculture) | E2: 0.10 - 1.86 | F2: Low income ($1,005 or less) | G2: AllightSykes
A3: Albania | B3: CGIAR (Climate Change, Agriculture and Food Security) | C3: EcoMicro | D3: AGRA | E3: 1.87 - 8.80 | F3: Lower Middle Income ($1,006 to $3,955) | G3: Ebara
A4: Algeria | B4: DFID ( Department for International Development - United Kingdom) | C4: GEF (Global Environment Facility) | D4: Energy 4Impact | E4: 8.81 - 26.06 | F4: Upper Middle Income ($3,956 to $12,235) | G4: Flowserve
A5: Andorra | B5: FAO (Food and Agriculture Organization) | C5: GPOBA (Global Partnershi on Output Based Aid) | D5: IFPRI (International Food Policy Research Institute) | E5: 26.07 - 48.54 | F5: High Income ($12.236 or more) | G5: Grundfos
A6: Angola | B6: GACSA (Global Alliance For Climate-Smart Agriculture) | C6: ICBA | D6: Lutheran World Relief | E6: 48.55 - 68.29 | G6: Kirloskar Brothers Lt
A7: Anguilla | B7: GIZ (Deutsche Gesellschaft für Internationale Zusammenarbeit GmbH) | C7: ICBA (International Center for Biosaline Agriculture) | D7: The Practica Foundation | E7: 68.30 - 84.33 | G7: KSB
A8: Antigua & Barbuda | B8: IFAD (International Fund for Agriculture Development) | E8: 84.34 - 96.90 | G8: Lorentz
A9: Argentina | B9: JICA (Japan International Cooperation Agency) | E9: No data | G9: Ruhrpumpen Group
A10: Armenia | B10: Nordic Development Fund | G10: Suzler Ltd
A11: Australia | B11: OECD (Organisation for Economic Co-operation and Development) | G11: Weir Group
A12: Austria | B12: OFID (OPEC Fund for International Development) | G12: Wilo SE
A13: Azerbaijan | B13: SIDA (Swedish International Development Cooperation Agency) | G13: Xylem
A14: Bahamas | B14: USAID
A15: Bahrain | B15: World Bank Group
A16: Bangladesh | B16: World Food Programme
A17: Barbados
A18: Belarus
A19: Belgium
A20: Belize
A21: Benin
A22: Bermuda
A23: Bhutan
A24: Bolivia
A25: Bosnia & Herzegovina
A26: Botswana
A27: Brazil
A28: Brunei Darussalam
A29: Bulgaria
A30: Burkina Faso
A31: Burundi
A32: Cambodia
A33: Cameroon
A34: Canada
A35: Cape Verde
A36: Cayman Islands
A37: Central African Republic
A38: Chad
A39: Chile
A40: China
A41: China - Hong Kong / Macau
A42: Colombia
A43: Comoros
A44: Congo
A45: Congo, Democratic Republic of (DRC)
A46: Costa Rica
A47: Croatia
A48: Cuba
A49: Cyprus
A50: Czech Republic
A51: Denmark
A52: Djibouti
A53: Dominica
A54: Dominican Republic
A55: Ecuador
A56: Egypt
A57: El Salvador
A58: Equatorial Guinea
A59: Eritrea
A60: Estonia
A61: Ethiopia
A62: Fiji
A63: Finland
A64: France
A65: French Guiana
A66: Gabon
A67: Gambia
A68: Georgia
A69: Germany
A70: Ghana
A71: Great Britain
A72: Greece
A73: Grenada
A74: Guadeloupe
A75: Guatemala
A76: Guinea
A77: Guinea-Bissau
A78: Guyana
A79: Haiti
A80: Honduras
A81: Hungary
A82: Iceland
A83: India
A84: Indonesia
A85: Iran
A86: Iraq
A87: Israel and the Occupied Territories
A88: Italy
A89: Ivory Coast (Cote d'Ivoire)
A90: Jamaica
A91: Japan
A92: Jordan
A93: Kazakhstan
A94: Kenya
A95: Korea, Democratic Republic of (North Korea)
A96: Korea, Republic of (South Korea)
A97: Kosovo
A98: Kuwait
A99: Kyrgyz Republic (Kyrgyzstan)
A100: Laos
A101: Latvia
A102: Lebanon
A103: Lesotho
A104: Liberia
A105: Libya
A106: Liechtenstein
A107: Lithuania
A108: Luxembourg
A109: Macedonia, Republic of
A110: Madagascar
A111: Malawi
A112: Malaysia
A113: Maldives
A114: Mali
A115: Malta
A116: Martinique
A117: Mauritania
A118: Mauritius
A119: Mayotte
A120: Mexico
A121: Moldova, Republic of
A122: Monaco
A123: Mongolia
A124: Montenegro
A125: Montserrat
A126: Morocco
A127: Mozambique
A128: Myanmar/Burma
A129: Namibia
A130: Nepal
A131: New Zealand
A132: Nicaragua
A133: Niger
A134: Nigeria
A135: Norway
A136: Oman
A137: Pacific Islands
A138: Pakistan
A139: Panama
A140: Papua New Guinea
A141: Paraguay
A142: Peru
A143: Philippines
A144: Poland
A145: Portugal
A146: Puerto Rico
A147: Qatar
A148: Reunion
A149: Romania
A150: Russian Federation
A151: Rwanda
A152: Saint Kitts and Nevis
A153: Saint Lucia
A154: Saint Vincent and the Grenadines
A155: Samoa
A156: Sao Tome and Principe
A157: Saudi Arabia
A158: Senegal
A159: Serbia
A160: Seychelles
A161: Sierra Leone
A162: Singapore
A163: Slovak Republic (Slovakia)
A164: Slovenia
A165: Solomon Islands
A166: Somalia
A167: South Africa
A168: South Sudan
A169: Spain
A170: Sri Lanka
A171: Sudan
A172: Suriname
A173: Swaziland
A174: Sweden
A175: Switzerland
A176: Syria
A177: Tajikistan
A178: Tanzania
A179: Thailand
A180: Netherlands
A181: Timor Leste
A182: Togo
A183: Trinidad & Tobago
A184: Tunisia
A185: Turkey
A186: Turkmenistan
A187: Turks & Caicos Islands
A188: Uganda
A189: Ukraine
A190: United Arab Emirates
A191: United States of America (USA)
A192: Uruguay
A193: Uzbekistan
A194: Venezuela
A195: Vietnam
A196: Virgin Islands (UK)
A197: Virgin Islands (US)
A198: Yemen
A199: Zambia
A200: Zimbabwe

Sheet Lists 2 (hidden)
A1: Column1 | B1: Column2 | C1: Column3 | D1: Column4 | E1: Column1 | H1: Solar Ranges | J1: Groundwater Depth | L1: Topography | N1: Ambient temperature | P1: Population Density
A2: Cropland, rainfed | B2: Highly Suitable | E2: Afghanistan | H2: 0 - 948 | J2: Up to 7m | L2: Mountainous | N2: Below 1C | P2: <1
A3: Cropland irrigated or post-flooding | B3: Highly Suitable | E3: Albania | H3: 949 - 1094 | J3: 7m - 25m | L3: Steep hills | N3: 1C to 30C | P3: 1 - 5
A4: Mosaic crop land with natural vegetation | B4: Highly Suitable | E4: Algeria | H4: 1095 - 1460 | J4: 25m - 50m | L4: Rolling hills | P4: 5 - 25
A5: Light forest open (tree cover up to 40%) | B5: Moderately Suitable | E5: American Samoa | H5: Above 1460 | J5: 50m - 100m | L5: Level | P5: 25 - 250
A6: Medium forest open to closed (tree cover above 40%) | B6: Marginally Suitable | E6: Andorra | J6: Beyond 100m | L6: Mixed various | P6: 250 - 1000
A7: Dense forest closed (tree cover above 40%) | B7: Not Suitable | E7: Angola | J7: Unknown | P7: >1000
A8: Shrubland | B8: Moderately Suitable | E8: Anguilla
A9: Grassland | B9: Moderately Suitable | E9: Antarctica
A10: Lichens and mosses | B10: Marginally Suitable | E10: Antigua and Barbuda
A11: Semi arid sparse vegetation | B11: Moderately Suitable | E11: Argentina
A12: Flood plains fresh water | B12: Marginally Suitable | E12: Armenia
A13: Flood plains brackish water | B13: Not Suitable | E13: Aruba
A14: Urban areas | B14: Not Suitable | E14: Australia
A15: Bare areas (sand dunes, gravel plains, etc) | B15: Marginally Suitable | E15: Austria
A16: Water bodies | B16: Not Suitable | E16: Azerbaijan
A17: Permanent snow and ice | B17: Not Suitable | E17: Bahamas
E18: Bahrain
E19: Bangladesh
E20: Barbados
E21: Belarus
E22: Belgium
E23: Belize
E24: Benin
E25: Bermuda
E26: Bhutan
E27: Bolivia
E28: Bosnia and Herzegovina
E29: Botswana
E30: Bouvet Island
E31: Brazil
E32: British Indian Ocean Territory
E33: Brunei Darussalam
E34: Bulgaria
E35: Burkina Faso
E36: Burundi
E37: Cambodia
E38: Cameroon
E39: Canada
E40: Cape Verde
E41: Cayman Islands
E42: Central African Republic
E43: Chad
E44: Chile
E45: China
E46: Christmas Island
E47: Cocos (Keeling Islands)
E48: Colombia
E49: Comoros
E50: Congo
E51: Cook Islands
E52: Costa Rica
E53: Cote D'Ivoire (Ivory Coast)
E54: Croatia (Hrvatska
E55: Cuba
E56: Cyprus
E57: Czech Republic
E58: Denmark
E59: Djibouti
E60: Dominica
E61: Dominican Republic
E62: East Timor
E63: Ecuador
E64: Egypt
E65: El Salvador
E66: Equatorial Guinea
E67: Eritrea
E68: Estonia
E69: Ethiopia
E70: Falkland Islands (Malvinas)
E71: Faroe Islands
E72: Fiji
E73: Finland
E74: France
E75: France
E76: Metropolitan
E77: French Guiana
E78: French Polynesia
E79: French Southern Territories
E80: Gabon
E81: Gambia
E82: Georgia
E83: Germany
E84: Ghana
E85: Gibraltar
E86: Greece
E87: Greenland
E88: Grenada
E89: Guadeloupe
E90: Guam
E91: Guatemala
E92: Guinea
E93: Guinea-Bissau
E94: Guyana
E95: Haiti
E96: Heard and McDonald Islands
E97: Honduras
E98: Hong Kong
E99: Hungary
E100: Iceland
E101: India
E102: Indonesia
E103: Iran
E104: Iraq
E105: Ireland
E106: Israel
E107: Italy
E108: Jamaica
E109: Japan
E110: Jordan
E111: Kazakhstan
E112: Kenya
E113: Kiribati
E114: Korea (North)
E115: Korea (South)
E116: Kuwait
E117: Kyrgyzstan
E118: Laos
E119: Latvia
E120: Lebanon
E121: Lesotho
E122: Liberia
E123: Libya
E124: Liechtenstein
E125: Lithuania
E126: Luxembourg
E127: Macau
E128: Macedonia
E129: Madagascar
E130: Malawi
E131: Malaysia
E132: Maldives
E133: Mali
E134: Malta
E135: Marshall Islands
E136: Martinique
E137: Mauritania
E138: Mauritius
E139: Mayotte
E140: Mexico
E141: Micronesia
E142: Moldova
E143: Monaco
E144: Mongolia
E145: Montserrat
E146: Morocco
E147: Mozambique
E148: Myanmar
E149: Namibia
E150: Nauru
E151: Nepal
E152: Netherlands
E153: Netherlands Antilles
E154: New Caledonia
E155: New Zealand
E156: Nicaragua
E157: Niger
E158: Nigeria
E159: Niue
E160: Norfolk Island
E161: Northern Mariana Islands
E162: Norway
E163: Oman
E164: Pakistan
E165: Palau
E166: Panama
E167: Papua New Guinea
E168: Paraguay
E169: Peru
E170: Philippines
E171: Pitcairn
E172: Poland
E173: Portugal
E174: Puerto Rico
E175: Qatar
E176: Reunion
E177: Romania
E178: Russian Federation
E179: Rwanda
E180: Saint Kitts and Nevis
E181: Saint Lucia
E182: Saint Vincent and The Grenadines
E183: Samoa
E184: San Marino
E185: Sao Tome and Principe
E186: Saudi Arabia
E187: Senegal
E188: Seychelles
E189: Sierra Leone
E190: Singapore
E191: Slovak Republic
E192: Slovenia
E193: Solomon Islands
E194: Somalia
E195: South Africa
E196: S. Georgia and S. Sandwich Isls.
E197: Spain
E198: Sri Lanka
E199: St. Helena
E200: St. Pierre and Miquelon
... 41 more rows
